fUSD/lending_fUSD_20251014
["ID","MTS","AMOUNT","RATE_DAILY","PERIOD"]
[391264069,1760451049211,-2150.96,0.00019178,2]
[391264070,1760451049220,-500.0,0.00019178,2]
[391264071,1760451049230,-500.0,0.00019178,2]
[391264072,1760451049239,-500.0,0.00019178,2]
[391264073,1760451049249,-2211.81,0.00019178,2]
[391264074,1760451049258,-2079.36,0.00019178,2]
[391264075,1760451049267,-1284.68,0.00019178,2]
[391264076,1760451049277,-1876.71,0.00019178,2]
[391264077,1760451049286,-500.0,0.00019178,2]
[391264078,1760451049296,-500.0,0.00019178,2]
[391264079,1760451049305,-789.36,0.00019178,2]
[391264080,1760451049314,-2145.83,0.00019178,2]
[391264081,1760451049324,-500.0,0.00019178,2]
[391264082,1760451049333,-500.0,0.00019178,2]
[391264083,1760451049343,-500.0,0.00019178,2]
[391264084,1760451049352,-500.0,0.00019178,2]
[391264085,1760451049361,-500.0,0.00019178,2]
[391264086,1760451049370,-500.0,0.00019178,2]
[391264087,1760451049380,-742.78,0.00019178,2]
[391264088,1760451049390,-500.0,0.00019178,2]
[391264089,1760451049399,-500.0,0.00019178,2]
[391264090,1760451049408,-500.0,0.00019178,2]
[391264091,1760451049418,-500.0,0.00019178,2]
[391264092,1760451049427,-500.0,0.00019178,2]
[391264093,1760451049436,-523.66,0.00019178,2]
[391264094,1760451049445,-500.0,0.00019178,2]
[391264095,1760451049455,-500.0,0.00019178,2]
[391264096,1760451049464,-525.08,0.00019178,2]
[391264097,1760451049473,-500.0,0.00019178,2]
[391264098,1760451049483,-1059.83,0.00019178,2]
[391264099,1760451049492,-500.0,0.00019178,2]
[391264100,1760451049501,-533.61,0.00019178,2]
[391264101,1760451049512,-500.0,0.00019178,2]
[391264102,1760451049521,-500.0,0.00019178,2]
[391264103,1760451049531,-301.67237059,0.00019178,2]
[391264104,1760451049541,-500.0,0.00019178,2]
[391264105,1760451049553,-545.11,0.00019178,2]
[391264106,1760451049562,-776.11,0.00019178,2]
[391264107,1760451049572,-874.29,0.00019178,2]
[391264108,1760451049581,-2093.08,0.00019178,2]
[391264109,1760451049590,-500.0,0.00019178,2]
[391264110,1760451049600,-500.0,0.00019178,2]
[391264111,1760451049609,-500.0,0.00019178,2]
[391264112,1760451049619,-709.21,0.00019178,2]
[391264113,1760451049629,-508.82,0.00019178,2]
[391264114,1760451049638,-1382.09,0.00019178,2]
[391264115,1760451049647,-500.0,0.00019178,2]
[391264116,1760451049656,-500.0,0.00019178,2]
[391264117,1760451049666,-500.0,0.00019178,2]
[391264118,1760451049675,-500.0,0.00019178,2]
[391264119,1760451049685,-500.0,0.00019178,2]
[391264120,1760451049694,-500.0,0.00019178,2]
[391264121,1760451049703,-548.26,0.00019178,2]
[391264122,1760451049713,-2090.39,0.00019178,2]
[391264123,1760451049723,-500.0,0.00019178,2]
[391264124,1760451049733,-780.93,0.00019178,2]
[391264125,1760451049742,-500.0,0.00019178,2]
[391264126,1760451049752,-500.0,0.00019178,2]
[391264127,1760451049761,-500.0,0.00019178,2]
[391264128,1760451049770,-1062.55,0.00019178,2]
[391264129,1760451049780,-2243.44,0.00019178,2]
[391264130,1760451049789,-454.08854794,0.00019178,2]
[391264131,1760451049800,-500.0,0.00019178,2]
[391264132,1760451049810,-500.0,0.00019178,2]
[391264133,1760451049819,-563.44,0.00019178,2]
[391264134,1760451049828,-500.0,0.00019178,2]
[391264135,1760451049838,-500.0,0.00019178,2]
[391264136,1760451049848,-500.0,0.00019178,2]
[391264137,1760451049858,-648.94,0.00019178,2]
[391264138,1760451049867,-500.0,0.00019178,2]
[391264139,1760451049877,-1304.02,0.00019178,2]
[391264140,1760451049886,-500.0,0.00019178,2]
[391264141,1760451049896,-500.0,0.00019178,2]
[391264142,1760451049906,-664.99,0.00019178,2]
[391264143,1760451049915,-500.0,0.00019178,2]
[391264144,1760451049926,-525.02348932,0.00019178,2]
[391264145,1760451049937,-1215.95,0.00019178,2]
[391264146,1760451049946,-500.0,0.00019178,2]
[391264147,1760451049956,-1968.64,0.00019178,2]
[391264148,1760451049965,-499.12940763,0.00019178,2]
[391264149,1760451049975,-500.0,0.00019178,2]
[391264150,1760451049984,-500.0,0.00019178,2]
[391264151,1760451049994,-500.0,0.00019178,2]
[391264152,1760451050003,-500.0,0.00019178,2]
[391264153,1760451050012,-1599.32,0.00019178,2]
[391264154,1760451050021,-500.0,0.00019178,2]
[391264155,1760451050030,-778.46,0.00019178,2]
[391264156,1760451050041,-2371.41,0.00019178,2]
[391264157,1760451050052,-500.0,0.00019178,2]
[391264158,1760451050062,-500.0,0.00019178,2]
[391264159,1760451050074,-500.0,0.00019178,2]
[391264160,1760451050083,-808.08,0.00019178,2]
[391264161,1760451050092,-500.0,0.00019178,2]
[391264162,1760451050102,-500.0,0.00019178,2]
[391264163,1760451050112,-500.0,0.00019178,2]
[391264164,1760451050122,-564.59191011,0.00019178,2]
[391264165,1760451050131,-500.0,0.00019178,2]
[391264166,1760451050140,-500.0,0.00019178,2]
[391264167,1760451050152,-794.19,0.00019178,2]
[391264168,1760451050161,-500.0,0.00019178,2]
[391264169,1760451050171,-500.0,0.00019178,2]
[391264170,1760451050180,-500.0,0.00019178,2]
[391264171,1760451050189,-928.64,0.00019178,2]
[391264172,1760451050198,-500.0,0.00019178,2]
[391264173,1760451050208,-500.0,0.00019178,2]
[391264174,1760451050217,-3145.83,0.00019178,2]
[391264175,1760451050227,-2722.54,0.00019178,2]
[391264176,1760451050236,-1726.0,0.00019178,2]
[391264177,1760451050245,-500.0,0.00019178,2]
[391264178,1760451050255,-500.0,0.00019178,2]
[391264179,1760451050265,-500.0,0.00019178,2]
[391264180,1760451050274,-500.0,0.00019178,2]
[391264181,1760451050283,-500.0,0.00019178,2]
[391264182,1760451050293,-796.14,0.00019178,2]
[391264183,1760451050309,-827.28,0.00019178,2]
[391264184,1760451050318,-500.0,0.00019178,2]
[391264185,1760451050328,-565.53,0.00019178,2]
[391264186,1760451050338,-2114.89,0.00019178,2]
[391264187,1760451050348,-500.0,0.00019178,2]
[391264188,1760451050357,-500.0,0.00019178,2]
[391264189,1760451050366,-500.0,0.00019178,2]
[391264190,1760451050376,-500.0,0.00019178,2]
[391264191,1760451050385,-520.29,0.00019178,2]
[391264192,1760451050395,-500.0,0.00019178,2]
[391264193,1760451050404,-751.66,0.00019178,2]
[391264194,1760451050414,-500.0,0.00019178,2]
[391264195,1760451050423,-1326.34,0.00019178,2]
[391264196,1760451050433,-500.0,0.00019178,2]
[391264197,1760451050443,-500.0,0.00019178,2]
[391264198,1760451050452,-955.02,0.00019178,2]
[391264199,1760451050461,-500.0,0.00019178,2]
[391264200,1760451050471,-500.0,0.00019178,2]
[391264201,1760451050480,-735.26,0.00019178,2]
[391264202,1760451050490,-500.0,0.00019178,2]
[391264203,1760451050499,-500.0,0.00019178,2]
[391264204,1760451050508,-936.46,0.00019178,2]
[391264205,1760451050517,-500.0,0.00019178,2]
[391264206,1760451050527,-765.04,0.00019178,2]
[391264207,1760451050537,-500.0,0.00019178,2]
[391264208,1760451050548,-500.0,0.00019178,2]
[391264209,1760451050557,-1021.91,0.00019178,2]
[391264210,1760451050567,-1887.82,0.00019178,2]
[391264211,1760451050577,-1267.09,0.00019178,2]
[391264212,1760451050587,-500.0,0.00019178,2]
[391264213,1760451050596,-2066.37,0.00019178,2]
[391264214,1760451050606,-500.0,0.00019178,2]
[391264215,1760451050615,-500.0,0.00019178,2]
[391264216,1760451050625,-713.86,0.00019178,2]
[391264217,1760451050634,-500.0,0.00019178,2]
[391264218,1760451050644,-500.0,0.00019178,2]
[391264219,1760451050653,-794.83,0.00019178,2]
[391264220,1760451050663,-500.0,0.00019178,2]
[391264221,1760451050672,-500.0,0.00019178,2]
[391264222,1760451050681,-500.0,0.00019178,2]
[391264223,1760451050691,-980.97,0.00019178,2]
[391264224,1760451050700,-500.0,0.00019178,2]
[391264225,1760451050710,-2111.12,0.00019178,2]
[391264226,1760451050720,-500.0,0.00019178,2]
[391264227,1760451050730,-532.83,0.00019178,2]
[391264228,1760451050739,-500.0,0.00019178,2]
[391264229,1760451050749,-881.55,0.00019178,2]
[391264230,1760451050758,-443.51761687,0.00019178,2]
[391264231,1760451050768,-500.0,0.00019178,2]
[391264232,1760451050778,-920.92,0.00019178,2]
[391264233,1760451050787,-918.49,0.00019178,2]
[391264234,1760451050802,-500.0,0.00019178,2]
[391264235,1760451050814,-500.0,0.00019178,2]
[391264236,1760451050824,-1107.04,0.00019178,2]
[391264237,1760451050834,-500.0,0.00019178,2]
[391264238,1760451050844,-689.26,0.00019178,2]
[391264239,1760451050855,-500.0,0.00019178,2]
[391264240,1760451050866,-752.73,0.00019178,2]
[391264241,1760451050876,-1386.97,0.00019178,2]
[391264242,1760451050886,-500.0,0.00019178,2]
[391264243,1760451050896,-500.0,0.00019178,2]
[391264244,1760451050906,-500.0,0.00019178,2]
[391264245,1760451050916,-551.43,0.00019178,2]
[391264246,1760451050925,-948.56,0.00019178,2]
[391264247,1760451050935,-500.0,0.00019178,2]
[391264248,1760451050944,-743.47,0.00019178,2]
[391264249,1760451050954,-500.0,0.00019178,2]
[391264250,1760451050963,-500.0,0.00019178,2]
[391264251,1760451050973,-1088.13,0.00019178,2]
[391264252,1760451050982,-559.94,0.00019178,2]
[391264253,1760451050991,-1038.56,0.00019178,2]
[391264254,1760451051000,-500.0,0.00019178,2]
[391264255,1760451051010,-500.0,0.00019178,2]
[391264256,1760451051019,-589.22,0.00019178,2]
[391264257,1760451051028,-500.0,0.00019178,2]
[391264258,1760451051037,-652.86,0.00019178,2]
[391264259,1760451051049,-500.0,0.00019178,2]
[391264260,1760451051058,-500.0,0.00019178,2]
[391264261,1760451051067,-500.0,0.00019178,2]
[391264262,1760451051080,-400.0,0.00019178,2]
[391264263,1760451051089,-500.0,0.00019178,2]
[391264264,1760451051099,-500.0,0.00019178,2]
[391264265,1760451051108,-922.83,0.00019178,2]
[391264266,1760451051118,-500.0,0.00019178,2]
[391264267,1760451051127,-500.0,0.00019178,2]
[391264268,1760451051137,-500.0,0.00019178,2]
[391264269,1760451051149,-500.0,0.00019178,2]
[391264270,1760451051158,-500.0,0.00019178,2]
[391264271,1760451051167,-538.68,0.00019178,2]
[391264272,1760451051176,-500.0,0.00019178,2]
[391264273,1760451051185,-500.0,0.00019178,2]
[391264274,1760451051195,-500.0,0.00019178,2]
[391264275,1760451051204,-730.94,0.00019178,2]
[391264276,1760451051213,-500.0,0.00019178,2]
[391264277,1760451051222,-500.0,0.00019178,2]
[391264278,1760451051232,-500.0,0.00019178,2]
[391264279,1760451051241,-500.0,0.00019178,2]
[391264280,1760451051250,-516.25,0.00019178,2]
[391264281,1760451051260,-500.0,0.00019178,2]
[391264282,1760451051269,-500.0,0.00019178,2]
[391264283,1760451051279,-549.85,0.00019178,2]
[391264284,1760451051288,-640.03,0.00019178,2]
[391264285,1760451051303,-500.0,0.00019178,2]
[391264286,1760451051312,-500.0,0.00019178,2]
[391264287,1760451051322,-1068.08,0.00019178,2]
[391264288,1760451051331,-641.17,0.00019178,2]
[391264289,1760451051341,-500.0,0.00019178,2]
[391264290,1760451051350,-500.0,0.00019178,2]
[391264291,1760451051360,-556.19,0.00019178,2]
[391264292,1760451051369,-500.0,0.00019178,2]
[391264293,1760451051379,-500.0,0.00019178,2]
[391264294,1760451051387,-977.06,0.00019178,2]
[391264295,1760451051397,-721.19,0.00019178,2]
[391264296,1760451051406,-500.0,0.00019178,2]
[391264297,1760451051415,-500.0,0.00019178,2]
[391264298,1760451051424,-847.26,0.00019178,2]
[391264299,1760451051434,-1257.01,0.00019178,2]
[391264300,1760451051443,-719.12,0.00019178,2]
[391264301,1760451051452,-500.0,0.00019178,2]
[391264302,1760451051462,-1480.33,0.00019178,2]
[391264303,1760451051471,-500.0,0.00019178,2]
[391264304,1760451051480,-500.0,0.00019178,2]
[391264305,1760451051490,-500.0,0.00019178,2]
[391264306,1760451051499,-2593.95,0.00019178,2]
[391264307,1760451051508,-980.81,0.00019178,2]
[391264308,1760451051518,-2031.95,0.00019178,2]
[391264309,1760451051527,-500.0,0.00019178,2]
[391264310,1760451051537,-682.43,0.00019178,2]
[391264311,1760451051548,-500.0,0.00019178,2]
[391264312,1760451051558,-611.41,0.00019178,2]
[391264313,1760451051567,-2348.09,0.00019178,2]
[391264314,1760451051576,-500.0,0.00019178,2]
[391264315,1760451051586,-500.0,0.00019178,2]
[391264316,1760451051595,-764.08,0.00019178,2]
[391264317,1760451051604,-716.51,0.00019178,2]
[391264318,1760451051614,-500.0,0.00019178,2]
[391264319,1760451051623,-1455.68,0.00019178,2]
[391264320,1760451051632,-500.0,0.00019178,2]
[391264321,1760451051641,-500.0,0.00019178,2]
[391264322,1760451051651,-500.0,0.00019178,2]
[391264323,1760451051660,-500.0,0.00019178,2]
[391264324,1760451051670,-936.22,0.00019178,2]
[391264325,1760451051679,-500.0,0.00019178,2]
[391264326,1760451051688,-515.33,0.00019178,2]
[391264327,1760451051697,-1837.08,0.00019178,2]
[391264328,1760451051707,-311.32478767,0.00019178,2]
[391264329,1760451051716,-500.0,0.00019178,2]
[391264330,1760451051725,-1665.64,0.00019178,2]
[391264331,1760451051734,-500.0,0.00019178,2]
[391264332,1760451051743,-500.0,0.00019178,2]
[391264333,1760451051752,-702.82,0.00019178,2]
[391264334,1760451051762,-500.0,0.00019178,2]
[391264335,1760451051771,-729.2,0.00019178,2]
[391264336,1760451051781,-500.0,0.00019178,2]
[391264337,1760451051790,-665.45,0.00019178,2]
[391264338,1760451051802,-500.0,0.00019178,2]
[391264339,1760451051811,-500.0,0.00019178,2]
[391264340,1760451051820,-847.77,0.00019178,2]
[391264341,1760451051829,-500.0,0.00019178,2]
[391264342,1760451051838,-946.84,0.00019178,2]
[391264343,1760451051848,-500.0,0.00019178,2]
[391264344,1760451051857,-615.0,0.00019178,2]
[391264345,1760451051866,-500.0,0.00019178,2]
[391264346,1760451051875,-784.58,0.00019178,2]
[391264347,1760451051884,-500.0,0.00019178,2]
[391264348,1760451051894,-500.0,0.00019178,2]
[391264349,1760451051903,-1497.27,0.00019178,2]
[391264350,1760451051912,-500.0,0.00019178,2]
[391264351,1760451052157,-500.0,0.00019178,2]
[391264352,1760451052166,-500.0,0.00019178,2]
[391264353,1760451052176,-500.0,0.00019178,2]
[391264354,1760451052185,-1508.88,0.00019178,2]
[391264355,1760451052194,-500.0,0.00019178,2]
[391264356,1760451052203,-500.0,0.00019178,2]
[391264357,1760451052212,-500.0,0.00019178,2]
[391264358,1760451052221,-1856.01,0.00019178,2]
[391264359,1760451052231,-500.0,0.00019178,2]
[391264360,1760451052240,-2099.58,0.00019178,2]
[391264361,1760451052250,-500.0,0.00019178,2]
[391264362,1760451052259,-793.6,0.00019178,2]
[391264363,1760451052269,-500.0,0.00019178,2]
[391264364,1760451052278,-500.0,0.00019178,2]
[391264365,1760451052288,-500.0,0.00019178,2]
[391264366,1760451052298,-500.0,0.00019178,2]
[391264367,1760451052308,-743.24,0.00019178,2]
[391264368,1760451052317,-500.0,0.00019178,2]
[391264369,1760451052327,-465.27232684,0.00019178,2]
[391264370,1760451052337,-687.01,0.00019178,2]
[391264371,1760451052347,-500.0,0.00019178,2]
[391264372,1760451052357,-1569.75,0.00019178,2]
[391264373,1760451052367,-500.0,0.00019178,2]
[391264374,1760451052377,-500.0,0.00019178,2]
[391264375,1760451052386,-1740.73,0.00019178,2]
[391264376,1760451052396,-736.77,0.00019178,2]
[391264377,1760451052405,-500.0,0.00019178,2]
[391264378,1760451052414,-500.0,0.00019178,2]
[391264379,1760451052423,-924.2,0.00019178,2]
[391264380,1760451052433,-500.0,0.00019178,2]
[391264381,1760451052442,-500.0,0.00019178,2]
[391264382,1760451052452,-1232.58,0.00019178,2]
[391264383,1760451052461,-500.0,0.00019178,2]
[391264384,1760451052471,-500.0,0.00019178,2]
[391264385,1760451052480,-500.0,0.00019178,2]
[391264386,1760451052489,-500.0,0.00019178,2]
[391264387,1760451052499,-500.0,0.00019178,2]
[391264388,1760451052508,-500.0,0.00019178,2]
[391264389,1760451052517,-500.0,0.00019178,2]
[391264390,1760451052527,-500.0,0.00019178,2]
[391264391,1760451052536,-898.55,0.00019178,2]
[391264392,1760451052546,-1706.74,0.00019178,2]
[391264393,1760451052556,-1009.27,0.00019178,2]
[391264394,1760451052566,-500.0,0.00019178,2]
[391264395,1760451052576,-2527.84,0.00019178,2]
[391264396,1760451052587,-500.0,0.00019178,2]
[391264397,1760451052596,-500.0,0.00019178,2]
[391264398,1760451052605,-736.3,0.00019178,2]
[391264399,1760451052614,-500.0,0.00019178,2]
[391264400,1760451052624,-500.0,0.00019178,2]
[391264401,1760451052634,-2138.29,0.00019178,2]
[391264402,1760451052644,-500.0,0.00019178,2]
[391264403,1760451052654,-500.0,0.00019178,2]
[391264404,1760451052663,-508.67,0.00019178,2]
[391264405,1760451052673,-2443.15,0.00019178,2]
[391264406,1760451052683,-1010.28,0.00019178,2]
[391264407,1760451052692,-500.0,0.00019178,2]
[391264408,1760451052702,-500.0,0.00019178,2]
[391264409,1760451052711,-500.0,0.00019178,2]
[391264410,1760451052721,-1734.79,0.00019178,2]
[391264411,1760451052730,-733.9,0.00019178,2]
[391264412,1760451052740,-500.0,0.00019178,2]
[391264413,1760451052750,-500.0,0.00019178,2]
[391264414,1760451052759,-500.0,0.00019178,2]
[391264415,1760451052768,-500.0,0.00019178,2]
[391264416,1760451052778,-500.0,0.00019178,2]
[391264417,1760451052788,-500.0,0.00019178,2]
[391264418,1760451052800,-2521.79,0.00019178,2]
[391264419,1760451052810,-681.63,0.00019178,2]
[391264420,1760451052820,-500.0,0.00019178,2]
[391264421,1760451052830,-500.0,0.00019178,2]
[391264422,1760451052840,-500.0,0.00019178,2]
[391264423,1760451052850,-1390.03,0.00019178,2]
[391264424,1760451052859,-500.0,0.00019178,2]
[391264425,1760451052868,-500.0,0.00019178,2]
[391264426,1760451052878,-500.0,0.00019178,2]
[391264427,1760451052887,-1226.79,0.00019178,2]
[391264428,1760451052896,-500.0,0.00019178,2]
[391264429,1760451052905,-1737.47,0.00019178,2]
[391264430,1760451052915,-500.0,0.00019178,2]
[391264431,1760451052924,-500.0,0.00019178,2]
[391264432,1760451052933,-500.0,0.00019178,2]
[391264433,1760451052942,-500.0,0.00019178,2]
[391264434,1760451052953,-527.88735458,0.00019178,2]
[391264435,1760451052962,-516.93,0.00019178,2]
[391264436,1760451052971,-500.0,0.00019178,2]
[391264437,1760451052981,-500.0,0.00019178,2]
[391264438,1760451052990,-500.0,0.00019178,2]
[391264439,1760451052999,-760.3,0.00019178,2]
[391264440,1760451053009,-1711.38,0.00019178,2]
[391264441,1760451053018,-500.0,0.00019178,2]
[391264442,1760451053027,-643.01,0.00019178,2]
[391264443,1760451053036,-1925.765935,0.00019178,2]
[391264444,1760451053048,-500.0,0.00019178,2]
[391264445,1760451053058,-583.18551682,0.00019178,2]
[391264446,1760451053067,-1692.56,0.00019178,2]
[391264447,1760451053080,-345.202835,0.00019178,2]
[391264448,1760451053090,-500.0,0.00019178,2]
[391264449,1760451053099,-500.0,0.00019178,2]
[391264450,1760451053109,-500.0,0.00019178,2]
[391264451,1760451053119,-280.299891,0.00019178,2]
[391264452,1760451053128,-500.0,0.00019178,2]
[391264453,1760451053137,-500.0,0.00019178,2]
[391264454,1760451053147,-228.45071,0.00019178,2]
[391264455,1760451053156,-1602.84,0.00019178,2]
[391264456,1760451053166,-245.262405,0.00019178,2]
[391264457,1760451053175,-500.0,0.00019178,2]
[391264458,1760451053184,-1853.1,0.00019178,2]
[391264459,1760451053194,-500.0,0.00019178,2]
[391264460,1760451053203,-1505.61,0.00019178,2]
[391264461,1760451053212,-1704.868231,0.00019178,2]
[391264462,1760451053222,-500.0,0.00019178,2]
[391264463,1760451053231,-500.0,0.00019178,2]
[391264464,1760451053240,-500.0,0.00019178,2]
[391264465,1760451053249,-1872.59,0.00019178,2]
[391264466,1760451053259,-500.0,0.00019178,2]
[391264467,1760451053268,-500.0,0.00019178,2]
[391264468,1760451053277,-599.8,0.00019178,2]
[391264469,1760451053286,-1664.205114,0.00019178,2]
[391264470,1760451053295,-500.0,0.00019178,2]
[391264471,1760451053305,-667.99,0.00019178,2]
[391264472,1760451053314,-500.0,0.00019178,2]
[391264473,1760451053323,-1096.44,0.00019178,2]
[391264474,1760451053331,-526.9820605,0.00019178,2]
[391264475,1760451053341,-500.0,0.00019178,2]
[391264476,1760451053351,-500.0,0.00019178,2]
[391264477,1760451053360,-720.72,0.00019178,2]
[391264478,1760451053370,-500.0,0.00019178,2]
[391264479,1760451053379,-500.0,0.00019178,2]
[391264480,1760451053388,-1056.29,0.00019178,2]
[391264481,1760451053398,-500.0,0.00019178,2]
[391264482,1760451053406,-763.1,0.00019178,2]
[391264483,1760451053416,-500.0,0.00019178,2]
[391264484,1760451053425,-500.0,0.00019178,2]
[391264485,1760451053434,-500.0,0.00019178,2]
[391264486,1760451053443,-585.66,0.00019178,2]
[391264487,1760451053452,-500.0,0.00019178,2]
[391264488,1760451053461,-500.0,0.00019178,2]
[391264489,1760451053470,-530.63,0.00019178,2]
[391264490,1760451053479,-647.68,0.00019178,2]
[391264491,1760451053489,-575.45,0.00019178,2]
[391264492,1760451053498,-500.0,0.00019178,2]
[391264493,1760451053507,-500.0,0.00019178,2]
[391264494,1760451053517,-1338.28,0.00019178,2]
[391264495,1760451053526,-500.0,0.00019178,2]
[391264496,1760451053536,-500.0,0.00019178,2]
[391264497,1760451053546,-2249.25,0.00019178,2]
[391264498,1760451053563,-783.37,0.00019178,2]
[391264499,1760451053584,-500.0,0.00019178,2]
[391264500,1760451053602,-500.0,0.00019178,2]
[391264501,1760451053624,-657.3,0.00019178,2]
[391264502,1760451053641,-658.81,0.00019178,2]
[391264503,1760451053661,-500.0,0.00019178,2]
[391264504,1760451053683,-556.42,0.00019178,2]
[391264505,1760451053705,-500.0,0.00019178,2]
[391264506,1760451053725,-500.0,0.00019178,2]
[391264507,1760451053743,-1342.05,0.00019178,2]
[391264508,1760451053765,-500.0,0.00019178,2]
[391264509,1760451053782,-500.0,0.00019178,2]
[391264510,1760451053805,-500.0,0.00019178,2]
[391264511,1760451053818,-500.0,0.00019178,2]
[391264512,1760451053838,-500.0,0.00019178,2]
[391264513,1760451053854,-597.16,0.00019178,2]
[391264514,1760451053871,-2003.28,0.00019178,2]
[391264515,1760451053888,-500.0,0.00019178,2]
[391264516,1760451053904,-1098.29,0.00019178,2]
[391264517,1760451053922,-500.0,0.00019178,2]
[391264518,1760451053939,-500.0,0.00019178,2]
[391264519,1760451053956,-1092.06,0.00019178,2]
[391264520,1760451053973,-500.0,0.00019178,2]
[391264521,1760451053989,-945.57,0.00019178,2]
[391264522,1760451054014,-1294.19,0.00019178,2]
[391264523,1760451054033,-1770.51,0.00019178,2]
[391264524,1760451054057,-634.42,0.00019178,2]
[391264525,1760451054078,-500.0,0.00019178,2]
[391264526,1760451054096,-679.82,0.00019178,2]
[391264527,1760451054115,-669.69,0.00019178,2]
[391264528,1760451054133,-500.0,0.00019178,2]
[391264529,1760451054151,-2125.2,0.00019178,2]
[391264530,1760451054169,-500.0,0.00019178,2]
[391264531,1760451054186,-500.0,0.00019178,2]
[391264532,1760451054202,-500.0,0.00019178,2]
[391264533,1760451054218,-500.0,0.00019178,2]
[391264534,1760451054234,-500.0,0.00019178,2]
[391264535,1760451054251,-500.0,0.00019178,2]
[391264536,1760451054268,-1850.35,0.00019178,2]
[391264537,1760451054284,-500.0,0.00019178,2]
[391264538,1760451054302,-500.0,0.00019178,2]
[391264539,1760451054318,-1531.07,0.00019178,2]
[391264540,1760451054334,-500.0,0.00019178,2]
[391264541,1760451054352,-500.0,0.00019178,2]
[391264542,1760451054368,-571.74,0.00019178,2]
[391264543,1760451054385,-746.2,0.00019178,2]
[391264544,1760451054401,-500.0,0.00019178,2]
[391264545,1760451054417,-500.0,0.00019178,2]
[391264546,1760451054433,-500.0,0.00019178,2]
[391264547,1760451054448,-1822.58,0.00019178,2]
[391264548,1760451054464,-500.0,0.00019178,2]
[391264549,1760451054480,-500.0,0.00019178,2]
[391264550,1760451054495,-2600.53,0.00019178,2]
[391264551,1760451054511,-1331.13,0.00019178,2]
[391264552,1760451054526,-500.0,0.00019178,2]
[391264553,1760451054542,-771.37,0.00019178,2]
[391264554,1760451054560,-625.0,0.00019178,2]
[391264555,1760451054577,-1451.24,0.00019178,2]
[391264556,1760451054592,-1082.61,0.00019178,2]
[391264557,1760451054608,-405.20301343,0.00019178,2]
[391264558,1760451054623,-626.12320808,0.00019178,2]
[391264559,1760451054640,-500.0,0.00019178,2]
[391264560,1760451054655,-500.0,0.00019178,2]
[391264561,1760451054671,-500.0,0.00019178,2]
[391264562,1760451054686,-500.0,0.00019178,2]
[391264563,1760451054702,-500.0,0.00019178,2]
[391264564,1760451054718,-661.34,0.00019178,2]
[391264565,1760451054734,-500.0,0.00019178,2]
[391264566,1760451054750,-500.0,0.00019178,2]
[391264567,1760451054767,-500.0,0.00019178,2]
[391264568,1760451054783,-500.0,0.00019178,2]